Cogmind - Beta 16 @@@ ROGUE MODE // 2025.12.01 @ 22:51:45 Player: FR-13D Result: Destroyed by P-80 Master with Gamma Rifle Performance ------------- Evolutions (7) 3500 Regions Visited (18) 3600 Robots Destroyed (149) 745 Value Destroyed (5756) 5756 Prototype IDs (14) 280 Alien Tech Used (0) 0 Bonus (1543) 1543 TOTAL SCORE: 15424 Bonus ------- High Alert Combat Kills 166 Entered Garrisons 400 Used RIF Installer 1000 Friendly Fire -23 Cogmind --------- Core Integrity 0/1300 Matter 23/300 Energy 13/100 System Corruption 18% Temperature Cool (6) Movement Flying (37) Location -3/Research Parts ------- > --- POWER (3) -------- (None) > --- PROPULSION (8) --- Xenon Bombardment Thruster Xenon Bombardment Thruster Field Propulsion Array Field Propulsion Array > --- UTILITY (7) ------ Advanced Signal Interpreter Advanced Melee Analysis Suite Advanced Melee Analysis Suite Advanced Melee Analysis Suite Relay Coupler [Grunt] (33) > --- WEAPON (3) ------- Enhanced Force Lance > --- INVENTORY (5) ---- Xenon Bombardment Thruster Advanced Weapon Cycler Wave Gun Nova Cannon Plasma Cutter Peak State ------------ > --- POWER ------------ Micro Nuclear Core Neutrino Core Neutrino Core > --- PROPULSION ------- Gravmag System Gravmag Array Gravmag Array Gravmag Array Improved Antigrav System > --- UTILITY ---------- Large Storage Unit Advanced Weight Redist. System Improved Signal Interpreter Advanced Reaction Control System Improved Power Shielding Hacking Suite Relay Coupler [NC] > --- WEAPON ----------- Phase Gun Nova Cannon Advanced Remote Datajack > --- INVENTORY -------- Neutrino Core Antimatter Reactor Gravmag Array Cooling System Melee Analysis Suite Advanced Weapon Cycler Advanced Weapon Cycler Relay Coupler [Grunt] Heavy Machine Gun Heavy Rocket Launcher Plasma Cutter [Rating: 106] Favorites ----------- Power Reinforced Deuterium Engine Engine Reinforced Deuterium Engine Power Core Neutrino Core Reactor Light Particle Reactor Propulsion Improved Medium Treads Treads Improved Medium Treads Wheel Wheel Hover Unit Gravmag System Flight Unit Xenon Bombardment Thruster Utility Large Storage Unit Device Improved Cooling System Storage Large Storage Unit Processor Improved Signal Interpreter Hackware Relay Coupler [NC] Protection Hardened Medium Armor Plating Weapon Heavy Machine Gun Energy Gun Heavy Laser Energy Cannon Matter Neutralizer Ballistic Gun Heavy Machine Gun Launcher Rocket Launcher Special Weapon Remote Datajack Impact Weapon Impact Mace Slashing Weapon Centrium Greatsword Piercing Weapon Enhanced Force Lance Build | -11 -10 -9 -8 -8 -8 -8 -8 -8 -8 -6 -6 -6 -5 -5 -5 -4 -4 -3 ------- Run | Yrd Mat Mat Mat Gar Mat Sto Gar Rec Scr Fac Low Low Fac Upp War Pro Fac Res Slots Evolved 14 | . . 2 2 . . . . . . 4 . . 2 . . . 2 2 Power 2 | . . . . . . . . . . 1 . . . . . . . 1 Propulsion 6 | . . 1 1 . . . . . . . . . 1 . . . 2 1 Utility 5 | . . 1 1 . . . . . . 2 . . 1 . . . . . Weapon 1 | . . . . . . . . . . 1 . . . . . . . . Parts Attached 154 | 9 2 20 1 7 21 4 11 2 1 7 6 . 12 . . 4 8 39 Power 16 | 1 . 3 . 1 2 1 1 . . . 1 . 1 . . . 1 4 Engine 8 | 1 . 3 . . 1 1 1 . . . 1 . . . . . . . Core 6 | . . . . 1 1 . . . . . . . 1 . . . 1 2 Reactor 2 | . . . . . . . . . . . . . . . . . . 2 Propulsion 56 | 4 . 5 1 2 7 2 5 2 1 . 1 . 5 . . . 5 16 Treads 12 | . . . . 1 2 . 5 2 . . 1 . . . . . 1 . Leg . | . . . . . . . . . . . . . . . . . . . Wheel 20 | 4 . 5 1 1 4 2 . . 1 . . . 2 . . . . . Hover 15 | . . . . . 1 . . . . . . . 3 . . . 4 7 Flight 9 | . . . . . . . . . . . . . . . . . . 9 Utility 39 | 2 1 6 . 1 6 1 2 . . 1 1 . 5 . . 1 1 11 Device 20 | 1 . 4 . . 3 . 1 . . . 1 . 5 . . 1 . 4 Storage 2 | 1 1 . . . . . . . . . . . . . . . . . Processor 5 | . . . . . 1 . . . . . . . . . . . . 4 Hackware 4 | . . . . . . . . . . 1 . . . . . . 1 2 Protection 8 | . . 2 . 1 2 1 1 . . . . . . . . . . 1 Artifact . | . . . . . . . . . . . . . . . . . . . Weapon 43 | 2 1 6 . 3 6 . 3 . . 6 3 . 1 . . 3 1 8 Energy Gun 13 | 1 . 3 . . 2 . 1 . . 2 1 . . . . 1 . 2 Energy Cannon 7 | . . 1 . . . . . . . 2 . . . . . 1 . 3 Ballistic Gun 10 | 1 . 1 . 1 4 . 1 . . . 2 . . . . . . . Ballistic Cannon . | . . . . . . . . . . . . . . . . . . . Launcher 4 | . . . . 2 . . 1 . . . . . . . . 1 . . Special Weapon 5 | . 1 . . . . . . . . 1 . . 1 . . . . 2 Impact Weapon 1 | . . . . . . . . . . 1 . . . . . . . . Slashing Weapon 2 | . . 1 . . . . . . . . . . . . . . 1 . Piercing Weapon 1 | . . . . . . . . . . . . . . . . . . 1 Special Melee Weapon . | . . . . . . . . . . . . . . . . . . . Unidentified Prototypes 5 | . . 2 . . . . . . . 1 . . 1 . . . 1 . Parts Lost 52 | . . 2 . 6 3 1 2 . . . 2 . 1 . . 1 3 31 Power 6 | . . . . 1 . . . . . . 1 . . . . . . 4 Propulsion 24 | . . 1 . 3 3 1 . . . . . . . . . . 2 14 Utility 13 | . . . . 1 . . 1 . . . 1 . 1 . . . . 9 Weapon 9 | . . 1 . 1 . . 1 . . . . . . . . 1 1 4 Highest Loss Streak 14 | . . 2 . 2 2 1 1 . . . 2 . 1 . . 1 2 14 To Critical Strikes 2 | . . . . . . . . . . . . . . . . . . 2 Average Backups 13 | 2 6 13 14 14 14 15 14 15 15 14 14 14 14 14 14 14 12 8 Power 1 | . 1 1 2 3 1 1 1 2 2 2 1 1 1 1 1 1 1 1 Propulsion 1 | . 2 1 1 . . . . . . . 1 1 4 6 6 6 4 1 Utility 4 | . . 5 5 5 6 6 5 5 5 3 3 4 2 2 2 2 2 3 Weapon 4 | 1 2 5 5 4 4 6 6 6 6 7 6 6 4 3 3 3 1 2 Tool/Special . | . . . . . . . . . . . . . . . . . . . Unused Backups 26 | . . 6 . 1 5 . 3 . . . 3 . 2 . . . . 6 Power 5 | . . 1 . 1 1 . . . . . . . 1 . . . . 1 Propulsion 1 | . . 1 . . . . . . . . . . . . . . . . Utility 11 | . . 2 . . 1 . 3 . . . 1 . . . . . . 4 Weapon 7 | . . 1 . . 2 . . . . . 2 . 1 . . . . 1 Tool/Special 2 | . . 1 . . 1 . . . . . . . . . . . . . Average Slot Usage (%) 93 | . 100 95 94 93 95 98 99 100 100 92 97 100 88 88 88 87 78 62 Engine 7 | . 14 11 9 6 5 . 4 9 9 11 11 13 7 5 5 5 3 . Core 2 | . . . . 2 2 9 4 . . . . . 2 5 5 5 6 6 Treads 16 | . . . . 4 5 9 27 36 35 26 26 26 3 . . . 1 . Wheel 8 | . 28 30 33 26 19 26 8 . . . . . 9 11 11 11 3 . Hover 2 | . . . . . 7 . . . . . . . 4 5 5 5 14 14 Device 15 | . 14 10 24 22 15 16 9 15 18 13 11 13 22 29 29 29 23 8 Storage 7 | . 14 11 9 9 9 9 9 9 9 6 6 6 5 5 5 5 5 2 Processor 5 | . . . . . 4 9 9 9 9 6 6 6 5 5 5 5 5 6 Hackware 2 | . . . . . . . . . . 5 6 6 2 . . . 1 4 Protection 4 | . . 11 . 4 6 1 8 2 . 1 6 6 2 . . . . . Energy Gun 6 | . 14 11 9 5 5 9 8 9 9 4 6 6 4 5 5 5 . 1 Energy Cannon 1 | . . 3 9 8 . . . . . 3 . . . 5 5 4 4 1 Ballistic Gun 7 | . 13 5 . 3 11 9 8 9 9 4 9 13 10 5 5 4 3 . Peak Build Rating 106 | 7 7 18 20 22 29 28 40 40 40 52 61 61 75 75 75 78 90 106 Average Rating 46 | 5 7 14 19 19 26 27 34 40 39 47 54 61 71 75 75 76 73 79 On Entrance 42 | . 7 7 18 20 18 28 28 40 40 40 52 61 61 75 75 75 69 89 Avg Prop Armor Cover (%) 7 | . . . . 7 7 12 14 . . . . . 4 3 3 3 5 17 Naked Turns . | . . . . . . . . . . . . . . . . . . . Heaviest Build 82 | 13 28 42 40 46 52 37 52 52 45 64 71 71 72 70 70 70 72 82 Greatest Support 108 | 32 26 30 40 40 36 36 100 100 100 100 108 108 108 56 56 56 74 99 Greatest Overweight (x) 5 | 1 1 2 1 2 5 1 1 . 5 . . . 2 1 1 1 3 1 Average Overweight (x) . | . . 1 . . 1 . . . . . . . 1 1 1 1 . . Largest Inventory Capacity 15 | 8 15 15 15 15 15 15 15 15 15 15 15 15 15 15 15 15 15 15 Average Capacity 14 | 7 9 15 15 15 15 15 15 15 15 15 15 15 15 15 15 15 15 11 Most Carried 15 | 6 8 15 15 15 15 15 15 15 15 15 15 15 15 15 15 15 15 15 Average Carried 14 | 2 6 13 14 14 14 15 14 15 15 14 14 15 14 15 15 15 14 9 Final Capacity 15 | 8 15 15 15 15 15 15 15 15 15 15 15 15 15 15 15 15 15 5 Final Carried 15 | 5 7 15 15 15 15 15 15 15 15 15 15 15 15 15 15 15 14 5 Class Distribution -------------------- 33% | Scavenger-Mutant 18% | Scavenger-Skirmisher 17% | Mutant 13% | Scavenger-Tank 10% | Skirmisher Dominant Class ---------------- Mutant | -10/Materials Scavenger-Mutant | -9/Materials Scavenger-Mutant | -8/Materials Scavenger-Mutant | -8/Garrison Mutant | -8/Materials Mutant | -8/Storage Scavenger-Mutant | -8/Garrison Scavenger-Mutant | -8/Recycling Scavenger-Mutant | -8/Scraptown Scavenger-Skirmisher | -6/Factory Scavenger-Skirmisher | -6/Lower Caves Scavenger-Tank | -6/Lower Caves Skirmisher | -5/Factory Skirmisher | -5/Upper Caves Skirmisher | -5/Warlord Skirmisher | -4/Proximity Caves Scavenger-Skirmisher | -4/Factory Mutant | -3/Research Resources | -11 -10 -9 -8 -8 -8 -8 -8 -8 -8 -6 -6 -6 -5 -5 -5 -4 -4 -3 ----------- Run | Yrd Mat Mat Mat Gar Mat Sto Gar Rec Scr Fac Low Low Fac Upp War Pro Fac Res Matter Collected 3814 | 263 58 386 20 219 718 127 432 215 20 . 455 . 96 . . 260 257 288 Remotely . | . . . . . . . . . . . . . . . . . . . Salvage Created 5400 | 219 133 646 224 408 899 175 649 283 . . 575 . 162 . . 117 356 554 Parts 334 | 18 14 50 14 23 53 9 45 11 . . 38 . 5 . . 4 15 35 Haulers Intercepted 4 | . . 1 . . 1 . . . . . . . . . . . 1 1 Recyclers Shooed 5 | 1 1 . . . 1 1 . 1 . . . . . . . . . . Parts Field Recycled . | . . . . . . . . . . . . . . . . . . . Retrieved Matter . | . . . . . . . . . . . . . . . . . . . Parts Self-Destructed 36 | . . . . . . . . . . . 33 . . 1 . 2 . . Prevented . | . . . . . . . . . . . . . . . . . . . Parts Restored . | . . . . . . . . . . . . . . . . . . . Kills | -11 -10 -9 -8 -8 -8 -8 -8 -8 -8 -6 -6 -6 -5 -5 -5 -4 -4 -3 ------- Run | Yrd Mat Mat Mat Gar Mat Sto Gar Rec Scr Fac Low Low Fac Upp War Pro Fac Res Combat Hostiles Destroyed 109 | . 5 17 4 12 11 1 17 2 . . 19 . 2 . . 3 4 12 Melee 4 | . . . . . . . . . . . . . . . . . . 4 Guns 59 | . 5 12 . 4 9 1 11 2 . . 9 . 1 . . 2 1 2 Cannons 20 | . . 5 3 3 . . . . . . 1 . . . . . 3 5 AOE 23 | . . . . 5 2 . 6 . . . 8 . . . . 1 . 1 Classes Destroyed 17 | 3 2 3 . 3 2 . 2 . . . 1 . . . . . . 1 Worker 9 | 1 . 3 1 . 1 1 . . . . . . . . . . 1 1 Builder 7 | . . 1 . . 4 . . . . . . . . . . . 1 1 Tunneler 7 | 5 . 1 . . 1 . . . . . . . . . . . . . Hauler 4 | . . 1 . . 1 . . . . . . . . . . . 1 1 Recycler 7 | 1 . . . . 3 1 . 2 . . . . . . . . . . Operator 3 | . . . . . 2 1 . . . . . . . . . . . . Watcher 3 | . . . . . 2 . . . . . . . 1 . . . . . Swarmer 41 | . 3 10 . 3 . . 3 . . . 12 . . . . 2 . 8 Cutter 2 | . . . . . . . . . . . . . . . . . . 2 Grunt 30 | . 2 3 2 5 7 . 3 . . . 5 . . . . 1 2 . Brawler 1 | . . . . 1 . . . . . . . . . . . . . . Duelist 1 | . . . . 1 . . . . . . . . . . . . . . Sentry 21 | . . 4 2 1 2 1 6 2 . . 1 . 1 . . . 1 . Hunter 5 | . . . . 1 2 . 1 . . . . . 1 . . . . . Programmer 6 | . . . . . . . 3 . . . . . . . . . 1 2 Behemoth 1 | . . . . . . . 1 . . . . . . . . . . . Mutant 1 | . . . . . . . . . . . 1 . . . . . . . Best Kill Streak 7 | 6 5 7 2 4 5 3 6 3 . . 7 . 1 . . 1 2 4 Combat Bots Only 7 | . 5 6 2 4 3 1 6 1 . . 7 . 1 . . 1 2 4 Max Kills in Single Turn 3 | 1 1 1 1 3 2 1 2 1 . . 2 . 1 . . 1 1 2 Gunslinging 1 | . . . . . . . . . . . 1 . . . . . . . Exploded 3 | . . . . 3 2 . 2 . . . 2 . . . . 1 . 1 Melee 1 | . . . . . . . . . . . . . . . . . . 1 Uniques/NPCs Destroyed . | . . . . . . . . . . . . . . . . . . . Combat | -11 -10 -9 -8 -8 -8 -8 -8 -8 -8 -6 -6 -6 -5 -5 -5 -4 -4 -3 -------- Run | Yrd Mat Mat Mat Gar Mat Sto Gar Rec Scr Fac Low Low Fac Upp War Pro Fac Res Hostile Shots Fired 876 | . 13 93 18 54 81 14 101 6 . . 72 . 44 . . 52 29 299 Missed 311 | . 3 19 10 20 19 1 36 4 . . 24 . 16 . . 22 8 129 Hits 565 | . 10 74 8 34 62 13 65 2 . . 48 . 28 . . 30 21 170 Melee 15 | . . . . 1 . . . . . . . . . . . 1 . 13 Projectile 550 | . 10 74 8 33 62 13 65 2 . . 48 . 28 . . 29 21 157 Critical Strikes 20 | . . . . 1 4 . 2 . . . 1 . 1 . . 3 2 6 Part Disruptions 1 | . . . . . . . . . . . 1 . . . . . . . Damage Taken 10572 | . 96 723 127 573 986 194 1153 30 . . 814 . 561 . . 616 421 4278 Core 2080 | . 40 163 . 63 63 32 198 . . . 34 . 64 . . 76 40 1307 Absorbed by Shields 94 | . . 94 . . . . . . . . . . . . . . . . Redirected to Shielding 108 | . . . . . . . . . . . . . . . . . . 108 Regen/Repaired (Parts) 137 | . . . . . . . . . . 80 57 . . . . . . . Core Remaining (%) 79 | 100 84 59 . . . . . . 35 . . 96 . . . 86 96 . Volleys Fired 469 | 18 14 52 15 54 84 12 59 11 . 8 33 . 15 . 2 19 33 40 Largest 3 | 2 2 2 2 2 2 2 2 2 . 1 3 . 3 . 3 3 3 2 Hottest 210 | 60 100 124 124 124 96 94 138 94 . 90 200 . 195 . 195 210 210 201 Shots Fired 868 | 36 27 97 30 100 161 24 111 24 . 8 69 . 37 . 5 33 59 47 Gun 637 | 36 26 70 15 46 154 24 98 24 . . 45 . 33 . 3 17 26 20 Cannon 177 | . . 27 15 45 3 . . . . 5 13 . 1 . 2 15 30 21 Launcher 38 | . . . . 9 4 . 13 . . . 9 . . . . 1 . 2 Special 16 | . 1 . . . . . . . . 3 2 . 3 . . . 3 4 Kinetic 323 | 18 13 24 . 12 101 12 49 12 . . 25 . 21 . 1 9 23 3 Thermal 489 | 18 14 73 30 79 56 12 49 12 . 5 33 . 13 . 4 23 33 35 Explosive 35 | . . . . 6 4 . 13 . . . 9 . . . . 1 . 2 Electromagnetic 6 | . . . . 3 . . . . . . . . . . . . . 3 Robot Hit Streak 17 | 7 4 12 11 8 10 17 16 3 . 1 14 . 8 . . 3 13 7 Robot Miss Streak 6 | 2 3 4 5 3 4 1 3 1 . 1 2 . 6 . . 3 4 6 Penetration Max 1 | . . . . . 1 . . . . . . . . . . . . . Secondary Targets 7 | . . 4 . . 2 . . . . . 1 . . . . . . . Max Gunslinging Chain 1 | . . 1 . . 1 . . . . . 1 . . . . . . . Shots Hit Robots 492 | 21 14 62 20 45 92 19 61 7 . 2 37 . 22 . . 10 40 40 Core Hits 246 | 8 9 27 8 24 38 5 39 4 . . 34 . 7 . . 7 15 21 Critical Kills 2 | . . . 1 . . . . . . . . . 1 . . . . . Critical Parts Destroyed 2 | 1 . . . . 1 . . . . . . . . . . . . . Critical Strikes 13 | 1 . 3 1 1 1 . 1 1 . . 1 . 1 . . . . 2 Burn 8 | . . 3 . 1 . . 1 1 . . 1 . . . . . . 1 Meltdown 2 | . . . 1 . . . . . . . . . 1 . . . . . Destroy 2 | 1 . . . . 1 . . . . . . . . . . . . . Sever 1 | . . . . . . . . . . . . . . . . . . 1 Melee Attacks 42 | . . 7 . . 3 . . . . . . . . . . . 5 27 Impact . | . . . . . . . . . . . . . . . . . . . Slashing 41 | . . 7 . . 3 . . . . . . . . . . . 5 26 Piercing 1 | . . . . . . . . . . . . . . . . . . 1 Sneak Attacks 5 | . . 2 . . . . . . . . . . . . . . 2 1 Combat Hostiles . | . . . . . . . . . . . . . . . . . . . Follow-up Attacks . | . . . . . . . . . . . . . . . . . . . Damage Inflicted 13000 | 233 144 990 349 1248 1934 362 1626 133 . . 1466 . 406 . . 360 1468 2281 Guns 6585 | 233 144 649 146 366 1589 362 1046 133 . . 650 . 375 . . 199 468 225 Cannons 2347 | . . 270 203 350 . . . . . . 257 . 31 . . 36 703 497 Explosions 2513 | . . . . 532 344 . 580 . . . 559 . . . . 114 . 384 Melee 1543 | . . 71 . . . . . . . . . . . . . . 297 1175 Ramming 12 | . . . . . 1 . . . . . . . . . . 11 . . Kinetic 3378 | 68 45 254 . 105 1032 162 449 73 . . 317 . 249 . . 134 446 44 Thermal 5450 | 165 99 665 349 611 557 200 597 60 . . 590 . 157 . . 101 725 574 Explosive 2507 | . . . . 526 344 . 580 . . . 559 . . . . 114 . 384 Electromagnetic 110 | . . . . 6 . . . . . . . . . . . . . 104 Impact . | . . . . . . . . . . . . . . . . . . . Slashing 1474 | . . 71 . . . . . . . . . . . . . . 297 1106 Piercing 69 | . . . . . . . . . . . . . . . . . . 69 Highest Corruption 17 | . . . . 1 1 1 1 1 . . 1 1 2 2 2 2 . 17 Average Corruption 1 | . . . . 1 1 1 1 1 . . 1 1 2 2 2 2 . 7 Corruption Purged . | . . . . . . . . . . . . . . . . . . . Corruption Blocked . | . . . . . . . . . . . . . . . . . . . Effects 64 | . . . . 8 6 1 2 2 . . 9 . . 2 1 13 . 20 Message Errors 22 | . . . . 3 2 1 1 . . . 5 . . 1 . 3 . 6 Matter Fused 15 | . . . . 2 3 . . . . . . . . . . 5 . 5 Heat Flow Errors 4 | . . . . . . . 1 . . . 1 . . . . 1 . 1 Energy Discharges 7 | . . . . . . . . . . . 1 . . 1 . 2 . 3 Parts Rejected 2 | . . . . . . . . . . . . . . . . . . 2 Data Loss (minor) 6 | . . . . 1 . . . . . . 2 . . . . 1 . 2 Data Loss (major) 1 | . . . . . 1 . . . . . . . . . . . . . Misfires 5 | . . . . 1 . . . 2 . . . . . . . 1 . 1 Weapon Failures 2 | . . . . 1 . . . . . . . . . . 1 . . . Overload Shots . | . . . . . . . . . . . . . . . . . . . Overflow Damage 186 | . . 4 . 9 1 . . . . . 15 . . . . . 41 116 Projectiles 62 | . . . . 9 . . . . . . 12 . . . . . 41 . Explosions 4 | . . . . . 1 . . . . . 3 . . . . . . . Melee 120 | . . 4 . . . . . . . . . . . . . . . 116 Knockbacks . | . . . . . . . . . . . . . . . . . . . Impact . | . . . . . . . . . . . . . . . . . . . Kinetic . | . . . . . . . . . . . . . . . . . . . Secondary . | . . . . . . . . . . . . . . . . . . . Self-Inflicted Damage 103 | . . . . 34 47 . . . . . 17 . . . . 5 . . Shots 5 | . . . . 3 1 . . . . . 1 . . . . . . . Rammed 3 | . . . . . 1 . . . . . . . . . . 2 . . Targets Rammed 3 | . . . . . 1 . . . . . . . . . . 2 . . Kicked . | . . . . . . . . . . . . . . . . . . . Crushed . | . . . . . . . . . . . . . . . . . . . Highest Temperature 594 | 60 67 531 . 15 60 33 121 8 . . 281 . 140 . 66 220 116 594 Average Temperature 95 | 27 31 134 . 7 8 9 29 6 . . 89 . 61 . 31 72 52 172 Received Heat Transfer 1681 | . 27 102 63 207 396 54 252 18 . . 229 . 18 . . 78 48 189 Effects 24 | . . 6 . . . . . . . . . . . . . . . 18 Shutdowns 6 | . . 1 . . . . . . . . . . . . . . . 5 Energy Bleed 3 | . . 1 . . . . . . . . . . . . . . . 2 Interference 5 | . . 2 . . . . . . . . . . . . . . . 3 Matter Decay 1 | . . . . . . . . . . . . . . . . . . 1 Damage (minor) 3 | . . 1 . . . . . . . . . . . . . . . 2 Damage (major) 3 | . . . . . . . . . . . . . . . . . . 3 Damage (core) 3 | . . 1 . . . . . . . . . . . . . . . 2 Siege Activations . | . . . . . . . . . . . . . . . . . . . Martial Activations . | . . . . . . . . . . . . . . . . . . . Shielding Activations . | . . . . . . . . . . . . . . . . . . . Robots Disrupted . | . . . . . . . . . . . . . . . . . . . Combat Hostiles . | . . . . . . . . . . . . . . . . . . . Robots Corrupted . | . . . . . . . . . . . . . . . . . . . Combat Hostiles . | . . . . . . . . . . . . . . . . . . . Parts Fried . | . . . . . . . . . . . . . . . . . . . Impact Corruptions . | . . . . . . . . . . . . . . . . . . . Robots Melted 3 | . . . 1 . . . . . . . 1 . 1 . . . . . Combat Hostiles 3 | . . . 1 . . . . . . . 1 . 1 . . . . . Parts Melted 22 | . . 3 . 3 2 4 3 1 . . 2 . 1 . . . 1 2 Heat Transferred 10360 | 375 225 1668 740 1369 1221 370 1184 185 . . 1158 . 272 . . 174 716 703 Parts Sabotaged . | . . . . . . . . . . . . . . . . . . . Parts Stolen . | . . . . . . . . . . . . . . . . . . . Parts Stripped . | . . . . . . . . . . . . . . . . . . . Power Chain Reactions . | . . . . . . . . . . . . . . . . . . . Alert | -11 -10 -9 -8 -8 -8 -8 -8 -8 -8 -6 -6 -6 -5 -5 -5 -4 -4 -3 ------- Run | Yrd Mat Mat Mat Gar Mat Sto Gar Rec Scr Fac Low Low Fac Upp War Pro Fac Res Maximum Alert Level 2 | . . 1 . 2 1 . 2 1 . . . . . . . . . 1 Low Security (%) 54 | 100 100 70 100 4 . 100 19 21 . 100 . . 100 . . . 100 87 Level 1 28 | . . 29 . 24 100 . 16 78 . . . . . . . . . 12 Level 2 17 | . . . . 70 . . 64 . . . . . . . . . . . Level 3 . | . . . . . . . . . . . . . . . . . . . Level 4 . | . . . . . . . . . . . . . . . . . . . Level 5 . | . . . . . . . . . . . . . . . . . . . High Security . | . . . . . . . . . . . . . . . . . . . Max Security . | . . . . . . . . . . . . . . . . . . . Peak Influence 682 | 20 107 322 188 626 369 141 682 321 . 16 . . 30 . . . 36 242 Initial 306 | . . 22 133 124 300 120 78 306 . . . . . . . . 30 9 Average 199 | 3 56 115 133 429 310 110 437 243 . . . . 2 . . . 11 79 Influence Increases 4273 | 35 154 558 129 552 439 91 624 85 . 18 390 . 86 . . 180 174 758 Destroy 0b10 Robot/C 2160 | . 100 340 80 240 220 20 340 40 . . 360 . 40 . . 60 80 240 Destroy 0b10 Robot/NC 200 | 35 . 30 5 . 70 15 . 10 . . . . 5 . . . 15 15 Destroy Leader 304 | . 20 72 10 10 66 10 30 . . . 30 . 22 . . . 12 22 Successful Hack 129 | . 33 40 4 30 13 . . 5 . . . . 2 . . . 2 . Disable Machine 195 | . . 15 . 15 45 15 . 30 . 15 . . 15 . . . . 45 Anti-Garrison Action 250 | . . . . 100 . . 150 . . . . . . . . . . . Destroy Structure 225 | . 1 1 . 67 25 1 59 . . 3 . . 2 . . . 20 46 Partial Spotted 15 | . . . . . . . . . . . . . . . . . . 15 Lose Combat Pursuer 795 | . . 60 30 90 . 30 45 . . . . . . . . 120 45 375 Influence Decreases 4168 | 35 100 296 253 128 768 257 63 614 153 18 390 . 56 30 . 132 204 671 Entered New Map 1377 | . . 32 183 68 316 167 43 376 153 . . . . 12 . . 18 9 Time Decay 2227 | 35 100 244 70 . 422 80 . 238 . 18 377 . 56 18 . 122 166 281 Search Patrol Dispatched 100 | . . . . . . . . . . . . . . . . . . 100 Lost Part 441 | . . 20 . 60 30 10 20 . . . 10 . . . . 10 20 261 Lost Ally 23 | . . . . . . . . . . . 3 . . . . . . 20 Squads Dispatched 17 | . . 1 1 . 4 . . . . . . . 1 . . 1 4 5 Investigation 1 | . . . . . . . . . . . . . . . . . 1 . Extermination 5 | . . . . . . . . . . . . . 1 . . . 1 3 Reinforcement 9 | . . 1 . . 4 . . . . . . . . . . . 2 2 Assault 1 | . . . . . . . . . . . . . . . . 1 . . Garrison 1 | . . . 1 . . . . . . . . . . . . . . . Intercept . | . . . . . . . . . . . . . . . . . . . Searches Triggered 1 | . . . . . . . . . . . . . . . . . . 1 Construction Impeded 2 | . . 1 . . 1 . . . . . . . . . . . . . Haulers Reinforced 1 | . . . . . . . . . . . . . . . . . 1 . Active Scanning Responses . | . . . . . . . . . . . . . . . . . . . Cargo Convoy Interrupts . | . . . . . . . . . . . . . . . . . . . Stealth | -11 -10 -9 -8 -8 -8 -8 -8 -8 -8 -6 -6 -6 -5 -5 -5 -4 -4 -3 --------- Run | Yrd Mat Mat Mat Gar Mat Sto Gar Rec Scr Fac Low Low Fac Upp War Pro Fac Res Distress Signals 10 | . . 4 . . 3 . . . . . . . . . . . . 3 Communications Jammed . | . . . . . . . . . . . . . . . . . . . Distress Signals . | . . . . . . . . . . . . . . . . . . . Times Spotted 193 | . 6 23 6 15 21 1 18 2 . 3 19 . 9 . . 13 8 49 Peak Tracking Total 11 | . 4 6 3 4 3 3 4 2 . 1 7 . 4 . . 7 5 11 Tactical Retreats 26 | . . 3 2 2 . 1 1 . . . . . . . . 3 3 11 Traps | -11 -10 -9 -8 -8 -8 -8 -8 -8 -8 -6 -6 -6 -5 -5 -5 -4 -4 -3 ------- Run | Yrd Mat Mat Mat Gar Mat Sto Gar Rec Scr Fac Low Low Fac Upp War Pro Fac Res Traps Triggered 11 | . . 1 . 1 . . 4 . . . . . 2 . . . 1 2 Indirectly . | . . . . . . . . . . . . . . . . . . . Trap Hack Attempts . | . . . . . . . . . . . . . . . . . . . Triggered . | . . . . . . . . . . . . . . . . . . . Disarmed . | . . . . . . . . . . . . . . . . . . . Reprogrammed . | . . . . . . . . . . . . . . . . . . . Reused . | . . . . . . . . . . . . . . . . . . . Traps Extracted . | . . . . . . . . . . . . . . . . . . . Installed . | . . . . . . . . . . . . . . . . . . . Triggered . | . . . . . . . . . . . . . . . . . . . Machines | -11 -10 -9 -8 -8 -8 -8 -8 -8 -8 -6 -6 -6 -5 -5 -5 -4 -4 -3 ---------- Run | Yrd Mat Mat Mat Gar Mat Sto Gar Rec Scr Fac Low Low Fac Upp War Pro Fac Res Machines Disabled 22 | . . 1 . 4 3 1 3 2 . 1 3 . 1 . . . . 3 Max in Single Turn 1 | . . 1 . 1 1 1 1 1 . 1 1 . 1 . . . . 1 Garrison Access 1 | . . . . . . . . . . . . . . . . . . 1 Garrison Relay 5 | . . . . 2 . . 3 . . . . . . . . . . . Machines Repaired . | . . . . . . . . . . . . . . . . . . . Machines Dismantled 1 | . . . . . . . . . . . . . . . . . . 1 Machines Sabotaged . | . . . . . . . . . . . . . . . . . . . Overloaded Fab Kills . | . . . . . . . . . . . . . . . . . . . Hacking | -11 -10 -9 -8 -8 -8 -8 -8 -8 -8 -6 -6 -6 -5 -5 -5 -4 -4 -3 --------- Run | Yrd Mat Mat Mat Gar Mat Sto Gar Rec Scr Fac Low Low Fac Upp War Pro Fac Res Machines Accessed 35 | . 3 7 2 2 3 3 1 3 1 . 2 . 4 . . . 2 2 Terminals 25 | . 3 6 1 2 3 2 1 3 . . 1 . 1 . . . 1 1 Fabricators . | . . . . . . . . . . . . . . . . . . . Repair Stations 1 | . . . . . . . . . . . . . 1 . . . . . Recycling Units 1 | . . . . . . . . . . . . . 1 . . . . . Scanalyzers 3 | . . 1 . . . . . . . . . . 1 . . . 1 . Garrison Access 3 | . . . 1 . . 1 . . . . . . . . . . . 1 Total Hacks 75 | . 7 15 4 3 7 5 1 6 3 . 4 . 8 . . . 9 3 Successful 46 | . 5 12 2 2 3 2 1 3 3 . 4 . 2 . . . 6 1 Failed 29 | . 2 3 2 1 4 3 . 3 . . . . 6 . . . 3 2 Catastrophic 5 | . 1 . . 1 . 1 . . . . . . 1 . . . 1 . Database Lockouts . | . . . . . . . . . . . . . . . . . . . Manual 32 | . 3 7 2 . 6 2 . 6 . . . . 5 . . . 1 . Terminals 54 | . 7 13 3 3 7 4 1 6 . . 3 . 1 . . . 4 2 Fabricators . | . . . . . . . . . . . . . . . . . . . Repair Stations 1 | . . . . . . . . . . . . . 1 . . . . . Recycling Units 3 | . . . . . . . . . . . . . 3 . . . . . Scanalyzers 10 | . . 2 . . . . . . . . . . 3 . . . 5 . Garrison Access 3 | . . . 1 . . 1 . . . . . . . . . . . 1 Terminal Hacks 21 | . 3 5 1 2 . 1 1 . 3 . 4 . . . . . 1 . Record 6 | . . . . . . . . . 3 . 3 . . . . . . . Robot Analysis 2 | . . 1 . . . 1 . . . . . . . . . . . . Prototype ID Bank 5 | . 2 1 1 . . . . . . . . . . . . . 1 . Open Door 1 | . . . . . . . . . . . 1 . . . . . . . Emergency Access Points 1 | . . . . 1 . . . . . . . . . . . . . . Scanalyzer Index 1 | . 1 . . . . . . . . . . . . . . . . . Locate Traps 3 | . . 3 . . . . . . . . . . . . . . . . Patrol Navigation 1 | . . . . . . . 1 . . . . . . . . . . . Security Stations 1 | . . . . 1 . . . . . . . . . . . . . . Fabricator Hacks . | . . . . . . . . . . . . . . . . . . . Repair Station Hacks . | . . . . . . . . . . . . . . . . . . . Recycling Unit Hacks . | . . . . . . . . . . . . . . . . . . . Scanalyzer 8 | . . 2 . . . . . . . . . . 2 . . . 4 . Retrieve Study 8 | . . 2 . . . . . . . . . . 2 . . . 4 . Garrison Access Hacks 3 | . . . 1 . . 1 . . . . . . . . . . . 1 Unlock Access 2 | . . . 1 . . 1 . . . . . . . . . . . . Seal Access 1 | . . . . . . . . . . . . . . . . . . 1 Unauthorized Hacks 14 | . 2 5 . . 3 . . 3 . . . . . . . . 1 . Terminals 14 | . 2 5 . . 3 . . 3 . . . . . . . . 1 . Botnet 14 | . 2 5 . . 3 . . 3 . . . . . . . . 1 . Fabricators . | . . . . . . . . . . . . . . . . . . . Repair Stations . | . . . . . . . . . . . . . . . . . . . Recycling Units . | . . . . . . . . . . . . . . . . . . . Scanalyzers . | . . . . . . . . . . . . . . . . . . . Garrison Access . | . . . . . . . . . . . . . . . . . . . Data Cores Recovered 1 | . . . . . . 1 . . . . . . . . . . . . Used 1 | . . . . . . 1 . . . . . . . . . . . . Hacking Detections 23 | . 2 3 2 2 3 2 . 1 . . 1 . 4 . . . 2 1 Full Trace Events 2 | . . . 1 . . . . . . . 1 . . . . . . . Feedback Events . | . . . . . . . . . . . . . . . . . . . Feedback Blocked . | . . . . . . . . . . . . . . . . . . . Robot Schematics Acquired . | . . . . . . . . . . . . . . . . . . . Robots Built . | . . . . . . . . . . . . . . . . . . . Authchips . | . . . . . . . . . . . . . . . . . . . Time . | . . . . . . . . . . . . . . . . . . . Total Robot Build Rating . | . . . . . . . . . . . . . . . . . . . Part Schematics Acquired . | . . . . . . . . . . . . . . . . . . . Parts Built . | . . . . . . . . . . . . . . . . . . . Authchips . | . . . . . . . . . . . . . . . . . . . Time . | . . . . . . . . . . . . . . . . . . . Total Part Build Rating . | . . . . . . . . . . . . . . . . . . . Part Studies Acquired 8 | . . 2 . . . . . . . . . . 2 . . . 4 . Parts Repaired . | . . . . . . . . . . . . . . . . . . . Time . | . . . . . . . . . . . . . . . . . . . Parts Recycled . | . . . . . . . . . . . . . . . . . . . Recycled Matter . | . . . . . . . . . . . . . . . . . . . Retrieved Matter . | . . . . . . . . . . . . . . . . . . . Retrieved Components . | . . . . . . . . . . . . . . . . . . . Parts Scanalyzed . | . . . . . . . . . . . . . . . . . . . Part Schematics Acquired . | . . . . . . . . . . . . . . . . . . . Parts Damaged . | . . . . . . . . . . . . . . . . . . . Bothacking | -11 -10 -9 -8 -8 -8 -8 -8 -8 -8 -6 -6 -6 -5 -5 -5 -4 -4 -3 ------------ Run | Yrd Mat Mat Mat Gar Mat Sto Gar Rec Scr Fac Low Low Fac Upp War Pro Fac Res Used RIF Installer 2 | . . . . 1 . . 1 . . . . . . . . . . . Coupler Efficiency 1 | . . . . . . . 1 . . . . . . . . . . . Robots Hacked 7 | . . . . . . . . . . 2 1 . 3 . . . . 1 Non-combat 6 | . . . . . . . . . . 2 1 . 3 . . . . . Combat . | . . . . . . . . . . . . . . . . . . . Robot Hacks Applied 6 | . . . . . . . . . . 2 1 . 3 . . . . . parse_system 1 | . . . . . . . . . . . 1 . . . . . . . find_chute 1 | . . . . . . . . . . . . . 1 . . . . . map_route 2 | . . . . . . . . . . 1 . . 1 . . . . . link_fov 1 | . . . . . . . . . . . . . 1 . . . . . formatsys_low 1 | . . . . . . . . . . 1 . . . . . . . . Manual 1 | . . . . . . . . . . . . . . . . . . 1 Relay Couplers Released 18 | . . . . 7 . . 11 . . . . . . . . . . . Machine Destruction 18 | . . . . 7 . . 11 . . . . . . . . . . . Attached 3 | . . . . . . . . . . 1 . . . . . . . 2 Fabnet Peak Effective % . | . . . . . . . . . . . . . . . . . . . Robots Rewired . | . . . . . . . . . . . . . . . . . . . Allies Hacked . | . . . . . . . . . . . . . . . . . . . Hacks Repelled . | . . . . . . . . . . . . . . . . . . . Allies | -11 -10 -9 -8 -8 -8 -8 -8 -8 -8 -6 -6 -6 -5 -5 -5 -4 -4 -3 -------- Run | Yrd Mat Mat Mat Gar Mat Sto Gar Rec Scr Fac Low Low Fac Upp War Pro Fac Res Total Allies 2 | . . . . . . . . . . 1 . . . . . . . 1 Largest Group 1 | . . . . . . . . . . 1 1 . . . . . . 1 Highest-Rated Group 116 | . . . . . . . . . . 14 14 . . . . . . 116 Highest-Rated Ally 116 | . . . . . . . . . . 14 14 . . . . . . 116 Total Orders 11 | . . . . . . . . . . 1 10 . . . . . . . STAY 4 | . . . . . . . . . . . 4 . . . . . . . ROAM 2 | . . . . . . . . . . . 2 . . . . . . . AID 5 | . . . . . . . . . . 1 4 . . . . . . . Ally Attacks 6 | . . . . . . . . . . . . . . . . . . 6 Total Damage 359 | . . . . . . . . . . . . . . . . . . 359 Kills . | . . . . . . . . . . . . . . . . . . . Allies Corrupted . | . . . . . . . . . . . . . . . . . . . Allies Melted . | . . . . . . . . . . . . . . . . . . . Intel | -11 -10 -9 -8 -8 -8 -8 -8 -8 -8 -6 -6 -6 -5 -5 -5 -4 -4 -3 ------- Run | Yrd Mat Mat Mat Gar Mat Sto Gar Rec Scr Fac Low Low Fac Upp War Pro Fac Res Active Infowar (turns) 8875 | 36 242 306 111 812 792 148 8 381 1329 565 1704 . 357 65 78 920 532 489 Sensors 7026 | . . . . . 450 148 8 381 1329 565 1704 . 357 65 78 920 532 489 Seismic 1849 | 36 242 306 111 812 342 . . . . . . . . . . . . . Robot Analysis Total 2 | . . 1 . . . 1 . . . . . . . . . . . . Derelict Logs Recovered 2 | . . . . . . . . . . . 1 . . . . 1 . . Drone Launches . | . . . . . . . . . . . . . . . . . . . Drone Recoveries . | . . . . . . . . . . . . . . . . . . . Exploration | -11 -10 -9 -8 -8 -8 -8 -8 -8 -8 -6 -6 -6 -5 -5 -5 -4 -4 -3 ------------- Run | Yrd Mat Mat Mat Gar Mat Sto Gar Rec Scr Fac Low Low Fac Upp War Pro Fac Res Turns Passed 13356 | 131 242 773 153 812 1026 178 1146 508 1329 565 3340 35 637 65 78 920 532 886 Spaces Moved 9496 | 68 193 588 119 699 645 132 674 278 804 315 1968 22 472 62 71 577 503 1306 Core 6 | 5 . . . . . . . . . . . . . . . . . 1 Treads 3765 | . . . . . 6 . 345 278 803 315 1968 22 9 . . . 19 . Legs . | . . . . . . . . . . . . . . . . . . . Wheels 4114 | 63 193 588 119 699 639 132 329 . 1 . . . 463 62 71 577 178 . Hover 896 | . . . . . . . . . . . . . . . . . 306 590 Flight 715 | . . . . . . . . . . . . . . . . . . 715 Fastest Speed 25 | 50 90 80 70 70 80 80 95 162 120 162 162 162 105 105 105 105 36 25 Average Speed 113 | 92 93 89 74 82 102 93 131 162 161 162 162 162 115 105 105 105 78 37 Slowest Speed 400 | 100 105 100 85 100 320 95 240 162 162 162 162 162 240 105 105 105 400 160 Overloaded Moves . | . . . . . . . . . . . . . . . . . . . Propulsion Burnouts . | . . . . . . . . . . . . . . . . . . . Robots Hopped 10 | . . . . . . . . . . . . . . . . . . 10 Potential Cave-ins 6 | . . . . . . . . . . . . . . . . 3 3 . Cave-ins Triggered . | . . . . . . . . . . . . . . . . . . . Exploration Rate (%) 32 | 3 33 42 11 51 46 13 48 55 57 5 95 7 15 13 12 62 15 35 Regions Visited 18 Branch Regions 8 Pre-discovered Areas 1 | . . . . . . . . . . . 1 . . . . . . . Known Exits Taken 13 | . . . 1 . 1 1 . 1 1 1 1 1 1 1 1 1 1 . Unknown Exits Taken 3 | 1 1 1 . . . . . . . . . . . . . . . . Scrap Searched 7 | . . . . . . . . . 2 . 2 . . . . 3 . . Spaces Dug 75 | . 1 . . . 1 . 7 . . 3 36 . . . 4 8 7 8 Terrain Destroyed 227 | . 1 . . 17 42 . 49 . . 4 52 . . . 4 26 13 19 Melee 5 | . . . . . 1 . . . . . . . . . . . 1 3 Projectile 47 | . 1 . . . 1 . 1 . . 4 3 . . . 4 15 12 6 AOE 175 | . . . . 17 40 . 48 . . . 49 . . . . 11 . 10 Terrain Rammed . | . . . . . . . . . . . . . . . . . . . Walls Destroyed . | . . . . . . . . . . . . . . . . . . . Machines Disabled . | . . . . . . . . . . . . . . . . . . . Actions | -11 -10 -9 -8 -8 -8 -8 -8 -8 -8 -6 -6 -6 -5 -5 -5 -4 -4 -3 --------- Run | Yrd Mat Mat Mat Gar Mat Sto Gar Rec Scr Fac Low Low Fac Upp War Pro Fac Res Total 11244 | 99 227 733 153 833 853 163 835 316 831 363 2067 21 555 61 72 877 602 1583 Wait 766 | . 16 17 16 50 57 11 31 23 25 15 46 . 18 . . 271 34 136 Move 9460 | 67 192 587 119 698 644 132 673 277 803 314 1967 21 471 61 70 576 502 1286 Hop 9 | . . . . . . . . . . . . . . . . . . 9 Pick Up 90 | 4 2 22 1 7 13 . 9 . . 4 5 . 11 . . . 3 9 Fast Attach 68 | 7 . 7 1 1 7 2 1 . 1 2 1 . 4 . . . 4 30 Attach 41 | . . 3 1 3 3 . 3 . . 4 1 . 4 . . . 8 11 Detach 16 | . . 1 . . 1 . . . . 2 . . 1 . . . 5 6 Swap 119 | 2 2 18 . 7 20 4 20 3 1 8 8 . 10 . . 6 5 5 Drop 108 | 1 1 19 . 5 20 2 15 2 1 5 6 . 13 . . 3 3 12 Fire 469 | 18 14 52 15 54 84 12 59 11 . 8 33 . 15 . 2 19 33 40 Melee 42 | . . 7 . . 3 . . . . . . . . . . . 5 27 Ram 3 | . . . . . 1 . . . . . . . . . . 2 . . Kick . | . . . . . . . . . . . . . . . . . . . Crush . | . . . . . . . . . . . . . . . . . . . Escape Stasis 46 | . . . . 8 . . 24 . . . . . 8 . . . . 6 Rewire 1 | . . . . . . . . . . 1 . . . . . . . . Trap . | . . . . . . . . . . . . . . . . . . . Miscellaneous 6 | . . . . . . . . . . . . . . . . . . 6 Route ------- -11/Scrapyard -10/Materials (discovered 2 exits: *Mat / [*Min]) -9/Materials (discovered 2 exits: *Mat / [*Min]) -8/Materials -8/Garrison (discovered 2 exits: *Mat x2) -8/Materials -8/Storage -8/Garrison (discovered 2 exits: *Rec x2) -8/Recycling -8/Scraptown -6/Factory (discovered 2 exits: *Low x2) -6/Lower Caves -6/Lower Caves -5/Factory -5/Upper Caves -5/Warlord -4/Proximity Caves -4/Factory -3/Research History --------- Turn | Location | Event 23 | -11/Scrapyard | Discovered new exit (range 16) 132 | -11/Scrapyard | Entered Materials 249 | -10/Materials | Discovered new exit (range 13) 304 | -10/Materials | Build established: Mutant 369 | -10/Materials | Discovered new exit (range 3) 374 | -10/Materials | Entered another Materials area 374 | -9/Materials | Evolved 2 slots: Propulsion x1, Utility x1 599 | -9/Materials | Discovered new exit (range 7) 654 | -9/Materials | Build established: Scavenger-Mutant 855 | -9/Materials | Discovered new exit (range 4) 1147 | -9/Materials | Entered another Materials area 1147 | -8/Materials | Evolved 2 slots: Propulsion x1, Utility x1 1250 | -8/Materials | Garrison activated, responded to threat 1300 | -8/Materials | Identified exit to Garrison 1300 | -8/Materials | Entered Garrison 1313 | -8/Garrison | Installed Relay Interface Framework 1324 | -8/Garrison | Triggered checkpoint 1337 | -8/Garrison | Garrison Relay disabled 1368 | -8/Garrison | Triggered checkpoint 1476 | -8/Garrison | Discovered new exit (range 6) 1508 | -8/Garrison | Triggered checkpoint 1791 | -8/Garrison | Discovered new exit (range 11) 1862 | -8/Garrison | Triggered checkpoint 1908 | -8/Garrison | Garrison Relay disabled 2021 | -8/Garrison | Learned Materials security intel 2044 | -8/Garrison | Triggered checkpoint 2112 | -8/Garrison | Entered Materials 2995 | -8/Materials | Build established: Mutant 3012 | -8/Materials | Discovered new exit (range 4) 3136 | -8/Materials | Identified exit to Storage 3138 | -8/Materials | Entered Storage 3316 | -8/Storage | Identified exit to Garrison 3316 | -8/Storage | Entered Garrison 3429 | -8/Garrison | Garrison Relay disabled 3537 | -8/Garrison | Triggered checkpoint 3687 | -8/Garrison | Spotted B-75 Beast 3693 | -8/Garrison | Core integrity fell below 50% 3784 | -8/Garrison | Destroyed B-75 Beast 3925 | -8/Garrison | Spotted B-75 Beast 3981 | -8/Garrison | Triggered checkpoint 4069 | -8/Garrison | Discovered new exit (range 11) 4084 | -8/Garrison | Identified exit to Recycling 4160 | -8/Garrison | Build established: Scavenger-Mutant 4195 | -8/Garrison | Triggered checkpoint 4244 | -8/Garrison | Expanded RIF knowledge: Coupler Efficiency 4260 | -8/Garrison | Garrison Relay disabled 4378 | -8/Garrison | Triggered checkpoint 4403 | -8/Garrison | Garrison Relay disabled 4441 | -8/Garrison | Discovered exit to Recycling (range 14) 4462 | -8/Garrison | Entered Recycling 4463 | -8/Recycling | Met a Zionite searching for Scraptown 4911 | -8/Recycling | Scanned before Scraplab entrance 4934 | -8/Recycling | Entered Scraplab 4966 | -8/Recycling | Discovered new exit (range 3) 4968 | -8/Recycling | Identified exit to Scraptown 4970 | -8/Recycling | Entered Scraptown 4970 | -8/Scraptown | System corruption cleaned by C-Scrubber 5076 | -8/Scraptown | Heard Great Nut preacher, LISTEN AND RECITE! 5144 | -8/Scraptown | Visited Red Mages 5210 | -8/Scraptown | Visited Awakened 5293 | -8/Scraptown | Discovered new exit (range 11) 5589 | -8/Scraptown | Visited Cave Peace 5657 | -8/Scraptown | Visited Cyclists 5739 | -8/Scraptown | Turned away by UFD registrar 5768 | -8/Scraptown | Visited IN-MT5's Study 6152 | -8/Scraptown | Visited Fellowship of the Rings 6183 | -8/Scraptown | Visited Comm Corps 6298 | -8/Scraptown | Identified exit to Factory 6299 | -8/Scraptown | Entered Factory 6299 | -6/Factory | Evolved 4 slots: Power x1, Utility x2, Weapon x1 6434 | -6/Factory | Discovered new exit (range 39) 6553 | -6/Factory | Identified exit to Lower Caves 6635 | -6/Factory | Build established: Scavenger-Skirmisher 6854 | -6/Factory | Discovered exit to Lower Caves (range 3) 6864 | -6/Factory | Entered Lower Caves 6864 | -6/Lower Caves | Accompanied by 1 ally 8300 | -6/Lower Caves | Attacked by a delusional Derelict stockpiling parts 8567 | -6/Lower Caves | Attracted the attention of an 0b10 base 8618 | -6/Lower Caves | Destroyed 7 combat bots 8642 | -6/Lower Caves | Learned Factory garrison access intel 8642 | -6/Lower Caves | Learned Extension stockpile data 8642 | -6/Lower Caves | Learned Research stockpile data 8876 | -6/Lower Caves | Build established: Scavenger-Tank 8882 | -6/Lower Caves | Discovered new exit (range 7) 8890 | -6/Lower Caves | Identified exit to Lower Caves 10204 | -6/Lower Caves | Entered another Lower Caves area 10217 | -6/Lower Caves | Discovered new exit (range 14) 10237 | -6/Lower Caves | Identified exit to Factory 10239 | -6/Lower Caves | Entered Factory 10239 | -5/Factory | Evolved 2 slots: Propulsion x1, Utility x1 10240 | -5/Factory | Loaded intel: 4 garrison access locations 10809 | -5/Factory | Build established: Skirmisher 10839 | -5/Factory | Discovered new exit (range 13) 10875 | -5/Factory | Identified exit to Upper Caves 10876 | -5/Factory | Entered Upper Caves 10937 | -5/Upper Caves | A Derelict revealed a hidden shortcut to "reach the base" 10939 | -5/Upper Caves | Identified exit to Warlord 10941 | -5/Upper Caves | Entered Warlord 11005 | -5/Warlord | Discovered new exit (range 15) 11018 | -5/Warlord | Identified exit to Proximity Caves 11019 | -5/Warlord | Entered Proximity Caves 11374 | -4/Proximity Caves | Received a Behemoth hack from an annoying Tinkerer 11825 | -4/Proximity Caves | Attracted the attention of an 0b10 outpost 11890 | -4/Proximity Caves | Attracted the attention of an 0b10 checkpoint 11927 | -4/Proximity Caves | Discovered new exit (range 8) 11934 | -4/Proximity Caves | Identified exit to Factory 11939 | -4/Proximity Caves | Entered Factory 11939 | -4/Factory | Evolved 2 slots: Propulsion x2 12466 | -4/Factory | Discovered new exit (range 13) 12471 | -4/Factory | Identified exit to Research 12471 | -4/Factory | Entered Research 12471 | -3/Research | Evolved 2 slots: Power x1, Propulsion x1 12796 | -3/Research | Lost 4 parts (2n1u1w) 12881 | -3/Research | Core integrity fell below 50% 12911 | -3/Research | Spotted B-86 Titan 12918 | -3/Research | Spotted B-86 Titan 12921 | -3/Research | Befriended a Behemoth using the annoying Tinkerer's hack 12945 | -3/Research | Lost 14 parts (3p4n4u3w) 13001 | -3/Research | Core integrity fell below 20% 13008 | -3/Research | Released all parts (5) 13044 | -3/Research | Lost 6 parts (5n1u) 13221 | -3/Research | Search patrols dispatched 13309 | -3/Research | System corruption reached 10% 13357 | -3/Research | Destroyed by P-80 Master with Gamma Rifle Last Messages --------------- patrols dispatched. 13244_ Acquired Nova Cannon. 13257_ K>EZE/#8OLAH:XJ9DZCWIY JF 13303_ Terminal disabled. 13304_ P-80 Master resets P-80 Master, system corruption cleaned. 13307_ System corrupted: Energy discharge (-58). 13307_ Neutrino Core destroyed. 13308_ Adv. Sensor Array destroyed. 13312_ Dropped Adv. Melee Analysis Suite. 13343_ Evaded trap by timely firing Reaction Control System. 13343_ Massive razor-sharp blades shoot up from within the floor. 13347_ Acquired Enh. Force Lance. 13348_ System corrupted: Phase Gun rejected. 13351_ ALERT: Security rotation in progress. 13354_ Reaction Control System destroyed. 13356_ Field Propulsion Array destroyed. Map ----- +----------------------------------------------------+ | #????????????????????????????????????????????????? | | #????????????????????????????????????????????????? | | #????????????????????????????????????????????????? | | #????????????????????????????????????????????????? | | #????????????????????????????????????????????????? | | #????????????????????????????????????????????????? | | #????????????????????????????????????????????????? | | #????????????????????????????????????????????????? | | #########+##?????????????????????????????????????? | | ?????????????????????????????????? | | ?????????????????????????????????? | | ?????????????????????????????????? | | ??????????????????????????????????? | | ######+#####?#############????????????????????? | | #????????????# #????????????????????? | | #????????????# #????????????????????? | | #????????????# #????????????????????? | | #????????????# #????????????????????? | | #????????????# #????????????????????? | | #????????????#= #????????????????????? | | # ##????????????# #????????????????????? | | ? #????###############+#################### ?????? | | ? #??### k ?????? | | ? #??""" ????? | | ? #?#"F" pp A ????? | | ????#" p p p @ ????? | | ????#""" ##############+############???????? | | ????#""" [#?????????# #??????????????? | | ?????### #?????????# #??????????????? | | ??? #?????????# """ #??????????????? | | # ########### """" #??????????????? | | # + """" #??????????????? | | ? ######## ##### """ #??????????????? | | ? ###+##+???????# #???# #??????????????? | | ? ???????????????# #???# #??????????????? | | # ??????????????# #???# #??????????????? | | ??????????????# #???##########??????????????? | | #?????????????# #???????????????????????????? | | #?????????????# #???????????????????????????? | | #?????????????# #???????????????????????????? | | #+#????????????????# #???????????????????????????? | | ???????????????????# #???????????????????????????? | | ???????????????????# #???????????????????????????? | | ???????????????????# #?????????????????????????### | | ?????????????????###+#####?#######??????######## | | ?????????????????# #? #????? # | | ?????????????????# #? #????? # | | ?????????????????# #"" ] #????? # | | ?????????????????# #"" # ???? # | | ?????????????????# "" #"T ! # """ # | +----------------------------------------------------+ Best States ------------- Heat Dissipation 89 Coolant Potential 50 Energy Generation 43 Energy Capacity 580 Matter Stores 300 Matter Capacity 300 Sight Range 16 Robot Scan Range 16 Terrain Scan Density 10 Additional Mass Support 9 Armor Coverage 450 Power Shielding 66 Weapon Cycling 30 Evasion (%) 72 Melee Accuracy 24 Recoil Reduction 4 Offensive Hacking 10 Relay Coupler Types 1 Relay Coupler Value 37 Item Schematics ----------------- None Robot Schematics ------------------ None Fabricated ------------ Nothing Repaired ---------- Nothing Studied --------- Wheel | -9/Materials | Hacked Autogun | -9/Materials | Hacked Gravmag Array | -5/Factory | Hacked Arm. Huge Wheel | -5/Factory | Hacked Gravmag System | -4/Factory | Hacked Antigrav System | -4/Factory | Hacked Matter Neutralizer | -4/Factory | Hacked Hvy. Machine Gun | -4/Factory | Hacked Alien Tech Used ----------------- None Achievements -------------- Woof! Challenges ------------ None Game ------ Seed BehemothStasisRouter Manual? 0 Play Time 01:49:37 Cumulative 100.7 hours Start 2025.12.01 @ 21:04:39 End 2025.12.01 @ 22:51:45 Sessions 1 Manual Loads 0 Difficulty Rogue Special Mode None Game No. 103 Rogue 103 Adventurer 0 Explorer 0 Win Type - Total 0 Types 0/0/0/0/0/0/0/0/0/0 Lore% 62 Gallery% 46 Achievement% 38 Wizard Run 0 Options --------- Layout 0 ASCII 0 Keyboard 1 Movement Vi Keybinds 0 Fullscreen 2 Font 18/SmallcapsGlow Map View 76x50 Zoom Use 0% Tactical HUD 1 Map Filters NONE Filters NONE Steam 1 RUN: 0ad60b63-aa52-48c0-8f7d-4efe43652baa